{"text_format":"3","workbook":"xlsx","n_sheets":18,"sheets":["Приложение к Прайсу Сер.Шаляпин","клуб Серова- Спарт Малокомплекн","Прайс по организации досуга","КЛУБЫ 2023-2024","Лист15","КЛУБЫ 2022-2023 ","Лист5","ДС ВЕРБНАЯ 23-24","ДС Кызыл 23-24","Скидки","Услуги специалистов","ДС КА с 01.03.2022-2023","ДС Вербная  2022-2023","КЛУБ Серова- Спартаковскася 21-","ДС КА до 02.2022","ДС Вербная  31.12.2021","ЛЕТНИЙ КЛУБ 2022","Семинары"],"not_rendered":{"defined_names":2},"read":"whole","date_system":"1900"}

{"sheet":"Приложение к Прайсу Сер.Шаляпин","index":0,"n_rows":12,"n_cols":5,"rows_kept":12,"hidden":true,"merged":[[4,0,4,4],[5,0,5,4]]}
[{"$nulls":4},"Утверждаю"]
[]
[]
[]
[" ПРИЛОЖЕНИЕ К ПРАЙСУ"]
[" на 2020-2021 учебный год"]
[]
["Возраст","Специалисты","График","Кол. в месяц","Стоимость"]
["3 года +  \"Я ПОЗНАЮ МИР\":  ▪ Развивающий курс 3+ -  ▪Английский язык    ▪Диагностика логопеда,  Диагностика  психолога,  ▪2 тренинга для родителей,"," ▪Преподаватель раннего обучения. преподаватель английского языка .     ▪Психолог","2-3 раза/нед. - 2-1.5 час.",24,4500]
["3 года +  \"Я ПОЗНАЮ МИР\":  развивающий курс 3+, диагностика психолога, 2 тренинга для родителей,  английский язык "," ▪Преподаватель раннего обучения. преподаватель английского языка .         ▪Психолог","1  раза/нед.  -1,5 часа","8 зан ",3000]
["4 года +  \"Я МОДЕЛИРУЮ МИР\":   ▪Развивающий курс 4+   ▪Английский язык      ▪Диагностика логопеда и психолога    ▪2 тренинга для родителей                  "," ▪Преподаватель раннего обучения. преподаватель английского языка .      ▪Психолог","2-3 раза/нед.  -  2,5-2 час. З",24,5400]
["Индивидуальные занятия в неурочное время",{"$nulls":3},800]

{"sheet":"клуб Серова- Спарт Малокомплекн","index":1,"n_rows":40,"n_cols":8,"rows_kept":40,"hidden":true,"merged":[[4,0,4,8],[5,0,5,8],[10,1,10,5],[12,0,13,0],[12,1,13,1],[12,2,13,2],[12,3,13,3],[12,4,13,4],[12,5,13,5],[12,6,13,6],[12,7,16,7],[12,8,16,8],[19,1,19,3],[20,1,20,3],[22,14,22,17],[22,18,22,21],[24,5,24,8],[25,1,25,3],[30,12,30,18],[34,0,34,5],[36,0,36,8],[48,0,48,8],[49,0,49,8]]}
[{"$nulls":6},"Утверждаю"]
[{"$nulls":6},"Директор ЧДОУ \"Школа Кенгуру\" Шепелина Е.М."]
[{"$nulls":6},"2021-08-19"]
[{"$nulls":6},"____________________"]
["ПРАЙС"]
["Образовательных услуг для детей по программе дополнительного образования \"Я — другой\" в малокомплектных группах и (или) индивидуально на 2020-2021 учебный год"]
[null,null,"Стартовый комплект-комплекс"]
[null,null,"для 5 - 6 лет","для 3 - 4 года","Я сам"]
[null,null,4000,3200,1500]
[]
[null," Образовательные    КОМПЛЕКСЫ"]
["Возраст","Специалисты","График","кол-во занятий в месяц","1-й год обучения","2-ой год обучения","3-ий год обучения","Пробное/ разовое занятие"]
["2,5 года +     \"Я САМ\":   ▪Развивающий комплекс    ▪Английский язык   ▪Ритмика    ▪Сопровождение психолога                                           ","▪Преподаватель по раннему обучению   ▪Психолог","2 раза/нед - 1 час         ",16,6500,null,"-","акция"]
[]
["3 года +  \"Я ПОЗНАЮ МИР\":  ▪ Развивающий курс 3+ -  ▪Английский язык -   ▪Арт-студия -  ▪Диагностика логопеда,  Диагностика  психолога,  ▪2 тренинга для родителей,"," ▪Преподаватель раннего обучения. преподаватель английского языка . Преподаватель артстудии,     ▪Психолог","2 раза/нед. -1.5-2 час.",20,7900,7400,"-"]
["4 года +  \"Я МОДЕЛИРУЮ МИР\":   ▪Развивающий курс 4+   ▪Английский язык  ▪Артстудия       ▪Диагностика логопеда и психолога    ▪2 тренинга для родителей                  "," ▪Преподаватель раннего обучения. преподаватель английского языка .     Преподаватель артстудии    ▪Психолог","2 раза/нед.  -  2-2.5час. ",20,9300,7900]
["5, 6 лет   \"ПРЕДШКОЛЬНАЯ ПОДГОТОВКА\"  ▪ Развивающий курс  5+ (или 6+)  ▪Английский язык   ▪Психолог   ▪Логопед    ▪Диагностика логопеда и психолога с выдачей результатов   ▪2 тренинга для родителей","▪Преподаватель предшкольного образования, преподаватель английского языка                ▪Логопед             ▪Психолог","2 раза/нед.  х 2 час.",16,7600,7200,6800]
[]
[]
[null,"Образовательные КОМПЛЕКСЫ"]
[null,"реализуемые в группах выходного дня 3-4 года "]
[null,null,"Стартовый комплект","3200 рублей"]
["Возраст","Специалисты","График","кол-во занятийв месяц","1-й год обучения","2-ой год обучения","Пробное занятие"]
["3 года +  \"Я ПОЗНАЮ МИР\":  развивающий курс 3+, диагностика психолога, 2 тренинга для родителей, арт-студия,  английский язык "," ▪Преподаватель раннего обучения. преподаватель английского языка .        Преподаватель артстудии,      ▪Психолог","1  раза/нед.  -2 часа","12 зан ",5600,5200,"акция"]
[]
[null,"                             Развивающие  КУРСЫ                             "]
[null,null,"стартовый комплект",1500]
["Возраст","Специалисты","График","кол-во занятийв месяц","Стоимость в мес-ц","Гостевое занятие"]
["Развивающий КУРС 3 года +     ▪Математика ▪Развитие речи  ▪ Чтение  ▪Постановка руки  ▪Окружающий мир         ","▪Преподаватель раннего обучения","2 раза/нед. -  45 минут",16,4700,"акция"]
["Развивающий КУРС 4 года +                       ▪Развитие речи   ▪ Чтение  ▪Постановка руки ▪Математика ▪Окружающий мир  ▪Конструирование","▪Преподаватель раннего обучения","2  раза/нед. - 1 час",16,5400,"акция"]
["Развивающий КУРС 5 лет  +                          ▪Развитие речи  ▪ Чтение   ▪Постановка руки   ▪Математика  ▪Окружающий мир ▪Конструирование  ▪Логика  ▪Риторика","Преподаватель предшкольного образования","2  раза/нед.  -  1,15час",16,6000,"акция"]
["6-8 лет( 2 половина года)  Экспресс - курс \"ПРЕДШКОЛЬНАЯ ПОДГОТОВКА\" (начальные навыки чтения , счета, подготовка руки к письму)","▪Преподаватель предшкольного образования      ","2 раза/нед.  или 1 раз/нед по 45 мин","2019-04-16","4000/2700","акция"]
["6-9 лет( 2 половина года)  Экспресс - курс \"ПРЕДШКОЛЬНАЯ ПОДГОТОВКА\" (начальные навыки чтения , счета, подготовка руки к письму) с учетом психологических особенностей ребенка","▪Преподаватель предшкольного образования      ","1-5 раз/нед.  или 1 раз/нед по 45 мин","4-20","800 руб/занятие"]
[]
["  КУРСЫ"]
[]
["Стартовый комплект = Стоимости учебного пособия. Второй год Read пособие не покупает"]
["Возраст","Специалисты","График","кол-во занятий","1-й год обучения","2-ой год обучения"]
[" АНГЛИЙСКИЙ ЯЗЫК 3+ ","▪Педагог","2 раза/нед.  Х 30 мин","8 занятий в месяц",4000,3600]
["АНГЛИЙСКИЙ ЯЗЫК  5+","▪Педагог","2 раза/нед.  Х 45  мин","8 занятий в месяц",4700,4300]

{"sheet":"Прайс по организации досуга","index":2,"n_rows":9,"n_cols":8,"rows_kept":9,"hidden":true,"merged":[[0,0,0,6],[1,0,1,6],[2,1,2,4]]}
["ПРАЙС"]
["На услуги по организации детско-родительского досуга"]
[null,"на 2021-2022 учебный год"]
["Возраст","Специалисты","График","Продолжительность","Стоимость в мес-ц 1 год ","Стоимость в КОМПЛЕКСЕ с другими предметами","Разовое занятие(родитель+ребенок)","пробное до 01.10.2021"]
["\"МАМА+МАЛЫШ\"  развивающие занятия для детей от1г до3х лет","педагого раннего обучения","8 встреч в месяц",null,3500,3000,500,250]
["Арт-студия для малышей и мам","педагого раннего обучения","4  встреч в мес",null,1200,800,400,250]
["ТЕАТР СЛОВ","▪Педагог","1 раза/нед.  Х 40 мин.",null,2500,1800,null,250]
["СЕНД-АРТ","▪Педагог","1 раза/нед.  Х 40 мин.",null,1600,1000,null,250]
["АРТСТУДИЯ   ","▪Педагог","1 раза/нед.  Х 30  мин\\45 мин.",null,2000,1500,null,250]

{"sheet":"КЛУБЫ 2023-2024","index":3,"n_rows":55,"n_cols":9,"rows_kept":55,"merged":[[0,1,0,8],[2,1,2,8],[4,1,5,1],[7,8,9,8],[10,8,12,8],[14,1,14,8],[16,8,21,8],[23,1,23,8],[24,1,24,8],[26,8,30,8],[32,1,32,8],[33,1,34,1],[37,8,39,8],[41,1,41,8],[49,1,49,8]]}
[null,"ПРАЙС игровой досуговой деятельности на сезон 2023-24"]
[]
[null,"ИГРОВЫЕ  КОМПЛЕКСЫ  2 РАЗА В НЕДЕЛЮ"]
[]
[null,"Стартовый комплект-комплекс","для 5 - 6 лет","для 3 - 4 года","Я сам","выходного дня"]
[null,null,4000,2700,1500,3200]
[null,"Возраст","Специалисты","График","Кол-во посещений в месяц","Стоимость","Стоимость для продолжающих","Разовое посещение","Пробное до 01.10.2023"]
[null,"от 8 мес до 2,5 лет  \"ИНТОНИКА\" музыкальный  клуб для мам и  детей ","▪музыкант, специалист раннего развития","2 раза/нед. -1ч / 1 раз/нед. -1ч","аб. на 8 зан (на 1,5 месяца)                            аб. на 8 зан (на 1 месяц)                         аб. на 4 зан (на 1,5 месяца)                             аб. на 4 зан (на 1 месяц)             ","5600            4500                                3200                                          2700",{"v":0.1,"d":"10%"},1000,500]
[null,"1,5 г до 3х лет \"МАМА+МАЛЫШ\"  клуб для мам и  детей от ","▪специалист раннего развития","2 раза/нед. -1ч / 1 раз/нед. -1ч","аб. на 8 зан (на 1,5 месяца)                            аб. на 8 зан (на 1 месяц)                         аб. на 4 зан (на 1,5 месяца)                             аб. на 4 зан (на 1 месяц)             ","5600            4500                                3200                                          2700",{"v":0.1,"d":"10%"},1000]
[null,"2,8 года+   \"Я САМ\"                                      ▪  Игровой курс 2,5+                          ▪ Английский клуб                                        ▪  Игры с психологом                                                                                                     ▪тестопластика/рисование","▪Специалист раннего развития                        ▪Специалист английского языка                           ▪Психолог","2 раза/нед. -1ч",8,6300,5670," "]
[null,"3 года + \"Я ПОЗНАЮ МИР\":                                                       ▪  Игровой курс 3+                                    ▪ Английский клуб                                       ▪  Игры с психологом                                                                                                     ▪2 тренинга для родителей","▪Специалист развивающего игрового курса                        ▪Специалист английского языка                           ▪Психолог","2 раза/нед. -1ч15мин",8,7500,6750," ",500]
[null,"4 года + \"Я МОДЕЛИРУЮ МИР\":                                                 ▪ Игровой курс 4+                                      ▪ Английский клуб                               ▪ Игры с психологом                                                                                                   ▪ 2 тренинга для родителей","▪Специалист развивающего игрового курса                       ▪Специалист английского языка                           ▪Психолог","2 раза/нед.  -1.5ч ",8,7500,6750," "]
[null,"5 - 7 лет \"ПРЕДШКОЛА\"                              ▪ Игровой курс  5+ (или 6+)                              ▪ Английский клуб                                    ▪ Игры с психологом                                                                                                     ▪ 2 тренинга для родителей","▪Специалист развивающего игрового курса                      ▪Специалист английского языка                           ▪Психолог","2 раза/нед  -2ч",8,8200,7380," "]
[]
[null,"ИГРОВЫЕ  КОМПЛЕКСЫ  ВЫХОДНОГО ДНЯ"]
[null,"Возраст","Специалисты","График","Кол-во посещений в месяц","Стоимость","Стоимость для продолжающих","Разовое посещение","Пробное до 01.10.2023"]
[null,"3 года +  \"Я ПОЗНАЮ МИР\":     3 ПРЕДМЕТА   :                                     ▪ Игровой курс 3+                                                       ▪Английский клуб                                                                                       ▪Арт -студия                                                                                                           ▪2 тренинга для родителей","▪Специалист по раннему  развитию                           ▪Специалист английского языка                                ▪Специалист артстудии                          ▪Психолог                             ","1  раз/нед.  \n2 часа",4,5800,5220,1500,500]
[null,"3 года+  \"Я ПОЗНАЮ МИР\":               2 ПРЕДМЕТА   :                                                                          ▪ Игровой курс 3+                             ▪Арт -студия                                                                                                                                                     ▪2 тренинга для родителей","▪Специалист по раннему  развитию                           ▪Специалист английского языка                                                    ▪Психолог                             ","1 раз/ нед.   1ч30мин",4,4500,4050,1300]
[null,"4 года+  \"Я МОДЕЛИРУЮ МИР\"     3 ПРЕДМЕТА   :                         ▪ Игровой курс 4+                                                       ▪Английский клуб                                                                                       ▪Арт -студия                                                                                                           ▪2 тренинга для родителей","▪Специалист по раннему  развитию                           ▪Специалист английского языка                                                    ▪Психолог                             ","1 раз/ нед.   1ч30мин",4,5800,5220,1500]
[null,"4 года+  \"Я МОДЕЛИРУЮ МИР\"                                                      2 ПРЕДМЕТА   :                                     ▪ Игровой курс 4+                                                       ▪Английский клуб                                                                                                                                                                                                ▪2 тренинга для родителей  ","▪Специалист по раннему  развитию                           ▪Специалист английского языка                                                    ▪Психолог                             ","1 раз/ нед.   1ч30мин",4,4500,4050,1300]
[null,"5-7 лет \"ПРЕДШКОЛА\"                               3 ПРЕДМЕТА   :                                       ▪ Игровой курс                           ▪Английский клуб                                                                                                         ▪Артстудия                                            ▪2 тренинга для родителей","▪Специалист по раннему  развитию                           ▪Специалист английского языка             И                          Арс-тудии                                       ▪Психолог                             ","1 раз/ нед.        2часа",4,6000,5220,1600]
[null,"5-7 лет   \"ПРЕДШКОЛА\"                                  2 ПРЕДМЕТА   :                                      ▪ Игровой курс                                                                                                                                ▪Артстудия                                                  ИЛИ                                                            Англ.яз                                                         ▪2 тренинга для родителей","▪Педагог игрового курса                    ▪Специалист английского языка  ИЛИ Арт-студии                                                  ▪Психолог                             ","1 раз/ нед.        2часа",4,4800,4050,1300]
[]
[null,"ИГРОВЫЕ  КУРСЫ"]
[null,"Стартовый комплект 2000 рублей"]
[null,"Возраст","Специалисты","График","Кол-во посещений в месяц","стоимость","Стоимость для продолжающих","Разовое посещение","Пробное до 01.10.2023"]
[null,"Игровой курс  \"Синтез искусств\"2,6+\n*тестопластика\n* сенд- арт\n*рисование гуашью и акварелью\n*аппликация\n*музыкальные игры\n*логоритмические игры","▪Специалист по раннему  развитию                                               ▪Психолог","1 раз/нед 1 час",4,4000,3600,1500,350]
[null,"Игровой КУРС Я САМ 2.5 года +                         ▪ Игровой комплекс                                        ▪ Тестопластика\\Рисование                   ▪ Игры с психологом      ","▪Специалист по раннему  развитию                                               ▪Психолог","2 раза/нед. -  50 минут",8,5200,4680," "]
[null,"Игровой КУРС 3 года +                                        ▪Веселая математика                                                  ▪Играем с кубиками Зайцева                                        ▪Пальчиковые игры                                                          ▪Мир вокруг                                            ▪ Игры  с психологом       \n","▪Специалист развивающего игрового курса                                              ▪Психолог   ","2 раза/нед. -  45 минут",8,5200,4680," "]
[null,"Игровой КУРС 4 года +                                        ▪ Веселая математика                                                  ▪ Играем с кубиками Зайцева                                        ▪ Пальчиковые игры                                                          ▪ Мир вокруг         \n▪ Игры с психологом","▪Специалист развивающего игрового курса                                               ▪Психолог","2  раза/нед. - 1 час",8,5200,4680," "]
[null," \"Игровой КУРС 5л+, 6л+                                        ▪Веселая математика                                                  ▪Играем с кубиками Зайцева                                        ▪Пальчиковые игры                                                          ▪Мир вокруг                            \n▪ Логика                           ▪Развивающие игры В.Воскобовича       \n▪ Игры с психологом                                                                                   \n","▪Специалист развивающего игрового курса                                                   ▪Психолог ","2  раза/нед.  -  1ч15мин",8,6000,5400," "]
[]
[null,"АНГЛИЙСКИЙ КЛУБ"]
[null,"Стартовый комплект ","для 5 - 6 лет","для 3 - 4 года","6+"]
[null,null,3200,1100,"Read и Write- 3000"]
[null,"Возраст","Специалисты","График","Кол-во посещений в месяц","Стоимость","Стоимость для продолжающих","Разовое посещение","Пробное до 01.10.2023"]
[null," АНГЛИЙСКИЙ КЛУБ 2+","Специалист по английскому языку","2 раза/нед. 15мин",8,2200,1980,300,250]
[null," АНГЛИЙСКИЙ КЛУБ 3+ ","Специалист по английскому языку","2 раза/нед. 30мин",8,4800,4320,800,350]
[null," АНГЛИЙСКИЙ КЛУБ 4+ ","Специалист по английскому языку","2 раза/нед. 30мин",8,4800,4320,800]
[null,"АНГЛИЙСКИЙ КЛУБ  5+","Специалист по английскому языку","2 раза/нед. 45мин",8,5200,4680,900]
[]
[null,"ТВОРЧЕСКИЕ МАСТЕРСКИЕ"]
[null,"Возраст","Специалисты","График","Кол-во посещений в месяц","Стоимость","Стоимость (в комплексе с РК+Анг.)","Разовое  посещение","Пробное до 01.10.2023"]
[null,"АКТЕРСКОЕ МАСТЕРСТВО (5-8 лет)","Специалист по актерскому мастерству","2 раза/нед.  60мин                                            ","8 / 4","5200 / 3000","4680 / 2700",800,350]
[null,"АРТ-СТУДИЯ    (3-8 лет)","Художник","1 раза/нед.  30мин/45 мин.",4,3000,2700,800,350]
[null,"РОБОТОТЕХНИКА (5-7 лет)","Специалист по робототехники","1 раз/нед. 60мин.",4,3500,3150,900,400]
[null,"ШАХМАТЫ 4+","Специалист по шахматам","1 раз/нед. 30мин.",4,2200,2000,700,350]
[null,"ШАХМАТЫ 6+","Специалист по шахматам","1 раз/нед. 30мин.",4,2200,2000,700,350]
[null,"МЕНТАЛЬНАЯ АРИФМЕТИКА","Специалист по ментальной арифметики","2 раз/нед. 60мин.",8,6000,5600,900,500]
[null,"Малокомплектная группа - Группа по 3-4 человек + 10% от стоимости курса"]
[{"$nulls":4},"Индивидуальные занятия ","плюс  30%","от стоимости отдельного игрового крса по возрасту"]
[null,"Английский язык  4+(30 мин)","800 рублей занятие",null,"занятия "]
[null,"Английский язык  5+( 45 мин)","900 рублей занятие"]
[null,"Развивающий курс 4+(45 мин)","900 рублей занятие"]
[null,"Развивающий курс 5+(1 час)","1000 рублей занятие"]

{"sheet":"Лист15","index":4,"n_rows":0,"n_cols":0,"rows_kept":0,"hidden":true}

{"sheet":"КЛУБЫ 2022-2023 ","index":5,"n_rows":54,"n_cols":9,"rows_kept":54,"hidden":true,"merged":[[0,1,0,9],[1,1,1,9],[2,1,2,9],[3,1,3,9],[4,1,4,8],[10,8,12,8],[10,9,12,9],[13,1,13,8],[14,15,14,18],[14,19,14,22],[22,1,22,8],[23,1,23,8],[30,13,30,19],[32,1,32,8],[33,1,33,9],[36,8,39,8],[41,1,41,8],[42,1,42,8],[48,1,48,9]]}
["   "]
[null,"Услуг для детей по досуговой деятельности на 2022-2023 учебный год"]
[null,"ИГРОВЫЕ  КОМПЛЕКСЫ  2 РАЗА В НЕДЕЛЮ"]
[]
[null,"Стартовый комплект-комплекс"]
[null,null,"для 5 - 6 лет","для 3 - 4 года","Я сам","выходного дня"]
[null,null,4000,2700,1500,3200]
[null,"Возраст","Специалисты","График","кол-во встреч","стоимость","Стоимость в КОМПЛЕКСЕ с другими курсами","Разовое (родитель+ребенок)","пробное до 01.10"]
[null,"\"МАМА+МАЛЫШ\"  клуб для мам и  детей от1г до3х лет","▪специалист раннего развития","8 встреч в месяц","8 встреч в месяц",4000,3000,600,300]
[null,"АРТ СТУДИЯ ДЛЯ МАМ И МАЛЫШЕЙ","▪специалист раннего развития","4  встречи в месяц","4 встречи в месяц",1500,1000,500,300]
[null,"3 года +  \"Я ПОЗНАЮ МИР\":                                         ▪  Игровой курс 3+                          ▪Английский клуб                     ▪  Игры с психологом                                                                                                     ▪2 тренинга для родителей","▪Специалист дошкольного образования                         ▪Специалист английского языка                           ▪Психолог","2 раза/нед. -1ч15мин",16,6300,null,950,600]
[null,"4 года +  \"Я МОДЕЛИРУЮ МИР\":                                         ▪ Игровой курс 4+                          ▪Английский клуб                     ▪Игры с психологом                                                                                                   ▪2 тренинга для родителей","▪Специалист дошкольного образования                         ▪Специалист английского языка                           ▪Психолог","2 раза/нед.  -  1.5ч ",16,6300,null,950]
[null,"5-7 лет   \"ПРЕДШКОЛА\"                              ▪ Игровой курс  5+ (или 6+)                              ▪Английский клуб                    ▪Игры с психологом                                                                                                     ▪2 тренинга для родителей","▪Специалист дошкольного образования                         ▪Специалист английского языка                           ▪Психолог","2 раза/нед  -  2ч",16,6800,null,980]
[null,"ИГРОВЫЕ  КОМПЛЕКСЫ  ВЫХОДНОГО ДНЯ"]
[null,"Возраст","Специалисты","График","кол-во посещений","стоимость",null,"Разовое посещение","Пробное  "]
[null,"3 года +  \"Я ПОЗНАЮ МИР\":                                          ▪ Игровой курс 3+                                          ▪Английский клуб                               ▪Арт -студия                                                                           ▪Игры с психологом                                  ▪2 тренинга для родителей","▪Специалист по раннему  развитию                           ▪Специалист английского языка                                ▪Специалист артстудии                          ▪Психолог                             ","1  раз/нед.  \n1ч45мин",8,"4900\nкурс без тестопластики - 3900",null,"1250/1000",600]
[null,"3 года+  \"3В  \"Я познаю мир\"                                  ▪ Игровой курс 3+                                          ▪Английский клуб                                                                                                         ▪Игры с психологом                                  ▪2 тренинга для родителей","▪Специалист по раннему  развитию                           ▪Специалист английского языка                                                    ▪Психолог                             ","1 раз/ нед.   1ч30мин","2023-08-04",3900,null,1000,600]
[null,"4 года + \"4В                                  ▪ Игровой курс 4+                                          ▪Английский клуб                                                                                                         ▪Игры с психологом                                  ▪2 тренинга для родителей","▪Специалист по раннему  развитию                           ▪Специалист английского языка                                                    ▪Психолог                             ","1 раз/ нед.   1ч30мин","2023-08-04",3900,null,1000,600]
[null,"5-7 лет \"5-7 В                                   ▪ Игровой курс 5+                                          ▪Английский клуб                                                                                                         ▪Игры с психологом                                  ▪2 тренинга для родителей","▪Специалист по раннему  развитию                           ▪Специалист английского языка                                                    ▪Психолог                             ","1 раз/ нед.        2часа","2023-08-04",3900,null,1000,600]
[null,"5+ лет                                    ▪ Игровой курс  5+ (или 6+)                              ▪Английский клуб (погружение в языковую среду)             -Арт -студия               ▪     Игры с психологом                                                                                         ▪2 тренинга для родителей","▪Специалист дошкольного образования                         ▪Специалист английского языка                           ▪Психолог ","1раз/нед  - 2ч 10мин",8,4900,null,1300,1300]
[]
[]
[null,"ИГРОВЫЕ  КУРСЫ"]
[]
[{"$nulls":3},"стартовый комплект",2000]
[null,"Возраст","Специалисты","График","кол-во посещений","стоимость","Стоимость в КОМПЛЕКСЕ с другими курсами","Разовое  (родитель+ребенок)","Пробное  посещение"]
[null,"Игровой курс  2,6+\n*тестопластика\n* сенд- арт\n*рисование гуашью и акварелью\n*аппликация\n*музыкальные игры\n*логоритмические игры","▪Специалист по раннему  развитию                                               ▪Психолог","1 раз/нед",4,2800,null,850]
[null,"Игровой КУРС Я САМ 2.5 года +                         ▪Игровой комплекс      ▪ Тестопластика\\Рисование   ▪ Игры с психологом      ","▪Специалист по раннему  развитию                                               ▪Психолог","2 раза/нед. -  50 минут",8,4400,null,650,600]
[null,"Игровой КУРС 3 года +                                        ▪Веселая математика                                                  ▪Играем с кубиками Зайцева                                        ▪Пальчиковые игры                                                          ▪Мир вокруг  ▪ Игры  с психологом       \n","▪Специалист дошкольного образования                                                   ▪Психолог   ","2 раза/нед. -  45 минут",8,4400,null,650,600]
[null,"Игровой КУРС 4 года +                                        ▪Веселая математика                                                  ▪Играем с кубиками Зайцева                                        ▪Пальчиковые игры                                                          ▪Мир вокруг         \n          ▪ Игры с психологом","▪Специалист дошкольного образования                                                  ▪Психолог","2  раза/нед. - 1 час",8,4400,null,650,600]
[null," \"Игровой КУРС 5+                                        ▪Веселая математика                                                  ▪Играем с кубиками Зайцева                                        ▪Пальчиковые игры                                                          ▪Мир вокруг                            \n▪ Логика                           ▪Развивающие игры В.Воскобовича       \n            ▪  Игры с психологом                                                                                   \n","▪Специалист дошкольного образования                                                    ▪Психолог ","2  раза/нед.  -  1ч15мин",8,4800,null,700,600]
[null,"                                                                                    "]
[null,"АНГЛИЙСКИЙ КЛУБ"]
[]
[null,"Возраст","Специалисты","График","кол-во посещений","стоимость","Стоимость в КОМПЛЕКСЕ с другими курсами","Разовое посещение","Пробное "]
[null," АНГЛИЙСКИЙ КЛУБ 2+","▪Специалист по английскому языку","2 раза/нед.  Х 15 мин","8 посещений в месяц",1800,1200,250,250]
[null," АНГЛИЙСКИЙ КЛУБ 3+ ","▪Специалист по английскому языку","2 раза/нед.  Х 30 мин","8 посещений в месяц",4000,3500,600,450]
[null," АНГЛИЙСКИЙ КЛУБ 4+ ","▪Специалист по английскому языку","2 раза/нед.  Х 30 мин","8 посещений в месяц",4000,3500,600]
[null,"АНГЛИЙСКИЙ КЛУБ  5+","▪Специалист по английскому языку","2 раза/нед.  Х 45  мин","8 посещений в месяц",4400,4000,650]
[null,"СУББОТНИЙ АНГЛИЙСКИЙ КЛУБ  5+","▪Специалист по английскому языку","1 раз/нед.  Х 30  мин","4 посещений в месяц",2500,2250,700]
[]
[null,"ТВОРЧЕСКИЕ МАСТЕРСКИЕ"]
[]
[null,"Возраст","Специалисты","График","кол-во посещений","стоимость","Стоимость в КОМПЛЕКСЕ с другими курсами","Разовое  посещение","Пробное "]
[null,"АКТЕРСКОЕ МАСТЕРСТВО (5-8 лет)","Педагог актерского мастерства","2 раза/нед.  Х 45  мин","8 занятий в месяц",4800,3500,800,500]
[null,"СЕНД-АРТ (3-8 лет)","▪Художник","1 раза/нед.  Х 40 мин.","4 занятия в месяц",1600,1000,"-",500]
[null,"АРТСТУДИЯ    (3-8 лет)","▪Художник","1 раза/нед.  Х 30  мин\\45 мин.","4 занятия в месяц",2500,2000,650,400]
[null,"РОБОТОТЕХНИКА    (4-8 лет)","▪","Х раза/нед.  Х ХХ  мин\\ХХ мин.","4 занятия в месяц",2400,"Х","-",650]
[null,"Малокомплектная группа - Группа по 3-4 человек + 10% от стоимости курса"]
[]
[]
[{"$nulls":5},"  "]
[{"$nulls":5}," "]
[{"$nulls":5}," "]

{"sheet":"Лист5","index":6,"n_rows":47,"n_cols":8,"rows_kept":47,"hidden":true,"merged":[[0,0,0,8],[1,0,1,8],[7,7,9,7],[7,8,9,8],[10,0,10,7],[19,0,19,7],[20,0,20,7],[30,0,30,7],[31,0,31,8],[34,7,37,7],[39,0,39,7],[40,0,40,7],[46,0,46,8]]}
["Прайс услуг для детей по досуговой деятельности на 2022-2023 год."]
["ИГРОВЫЕ КОМПЛЕКСЫ 2 РАЗА В НЕДЕЛЮ"]
[null,"для 5 - 6 лет","для 3 - 4 года","Я сам","выходного дня"]
[null,4000,2700,1500,3200]
["Возраст","Специалисты","График","кол-во встреч","стоимость","Стоимость в КОМПЛЕКСЕ(+арт)","Разовое (родитель+ребенок)","пробное до 01.10"]
["\"МАМА+МАЛЫШ\" клуб для мам и детей от 1г до3х лет","▪специалист раннего развития","8 встреч в месяц","8 встреч в месяц",4000,3000,600,300]
["АРТ СТУДИЯ ДЛЯ МАМ И МАЛЫШЕЙ","▪специалист раннего развития","4 встреч в месяц","4 занятия в месяц",1500,1000,500,300]
["3 года + \"Я ПОЗНАЮ МИР\":  ▪ Игровой курс 3+ ▪Английский клуб ▪Игры с психологом   ▪2 тренинга для родителей","▪Специалист дошкольного образования ▪Специалист английского языка ▪Психолог","2 раза/нед. -1ч15мин",16,6300,null,950,600]
["4 года + \"Я МОДЕЛИРУЮ МИР\":  ▪ Игровой курс 4+ ▪Английский клуб ▪Игры с психологом   ▪2 тренинга для родителей","▪Специалист дошкольного образования ▪Специалист английского языка ▪Психолог","2 раза/нед. - 1.5ч",16,6300,null,950]
["5-7 лет ▪ Игровой курс 5+ (или 6+) ▪Английский клуб ▪Игры с психологом ▪2 тренинга для родителей","▪Специалист дошкольного образования ▪Специалист английского языка ▪Психолог","2 раза/нед - 2ч",16,6800,null,980]
["ИГРОВЫЕ КОМПЛЕКСЫ ВЫХОДНОГО ДНЯ"]
["Возраст","Специалисты","График","кол-во посещений","стоимость",null,"Разовое","Пробное посещение"]
["3В года + \"Я ПОЗНАЮ МИР\":   ▪ Игровой курс 3+ ▪Английский клуб ▪Арт -студия ▪2 тренинга для родителей","▪Специалист по раннему развитию ▪Специалист английского языка ▪Специалист артстудии ▪Психолог","1 раз/нед. \n 1ч45мин","2012-08-04",4900,null,"1250/1000",600]
["3 года+ \"3В \"Я познаю мир\"   ▪ Игровой курс 3+ ▪Английский клуб Игры с психологом ▪2 тренинга для родителей","▪Специалист по раннему развитию ▪Специалист английского языка ▪Психолог","1 раз/ нед. 1ч30мин","2023-08-04",3900,null,1000,600]
["4 года + \"4В   ▪ Игровой курс 4+ ▪Английский клуб ▪2 тренинга для родителей","▪Специалист по раннему развитию ▪Специалист английского языка","1 раз/ нед. 1ч30мин","2023-08-04",3900,null,1000,600]
["5-7 лет \"5-7 В +   ▪ Игровой курс 5+ ▪Английский клуб ▪2 тренинга для родителей","▪Специалист по раннему развитию ▪Специалист английского языка","1 раз/ нед. 2часа","2023-08-04",3900,null,1000,600]
["5+ лет ▪ Игровой курс 5+ (или 6+) ▪Английский клуб(погружение в языковую среду) -Арт -студия  ▪2 тренинга для родителей","▪Специалист дошкольного образования ▪Специалист английского языка","1раз/нед - 2ч 15мин",8,4900,null,1300,1300]
[]
[]
["ИГРОВЫЕ КУРСЫ"]
[]
[{"$nulls":3},2000]
["Возраст","Специалисты","График","кол-во посещений","стоимость","Стоимость в КОМПЛЕКСЕ","Разовое посещение (родитель+ребенок)","Пробное посещение"]
["Игровой курс 2,6 +\n *тестопластика\n * сенд- арт\n *рисование гуашью и акварелью\n *аппликация\n *музыкальные игры","▪Специалист по раннему развитию ▪Психолог","1 раз/нед",4,2800,null,850]
["Игровой КУРС Я САМ 2.5 года +   ▪Игровой комплекс ▪Тестопластика\\Рисование ▪ Игры с психологом","▪Специалист по раннему развитию ▪Психолог","2 раза/нед. - 50 минут",8,4400,null,650,600]
["Игровой КУРС 3 года +   ▪Веселая математика ▪Играем с кубиками Зайцева ▪Пальчиковые игры ▪Мир вокруг ▪","▪Специалист дошкольного образования ▪Психолог","2 раза/нед. - 45 минут",8,4400,null,650,600]
["Игровой Курс 4 года +   ▪Веселая математика ▪Играем с кубиками Зайцева ▪Пальчиковые игры ▪Мир вокруг","▪Специалист дошкольного образования ▪Психолог","2 раза/нед. - 1 час",8,4400,null,650,600]
["Игровой КУРС 5+ ▪Веселая математика ▪Играем с кубиками Зайцева ▪Пальчиковые игры ▪Мир вокруг","▪Специалист дошкольного образования ▪Психолог","2 раза/нед. - 1ч15мин",8,4800,null,700,600]
[]
[]
["АНГЛИЙСКИЙ КЛУБ"]
[]
["Возраст","Специалисты","График","кол-во посещений","стоимость","Стоимость в комплексе","Разовое посещение","Пробное"]
["АНГЛИЙСКИЙ КЛУБ 2+","▪Специалист по английскому языку","2 раза/нед. Х 15 мин","8 посещений в месяц",1800,1200,250,250]
["АНГЛИЙСКИЙ КЛУБ 3+","▪Специалист по английскому языку","2 раза/нед. Х 30 мин","8 посещений в месяц",4000,3500,600,450]
["АНГЛИЙСКИЙ КЛУБ 4+","▪Специалист по английскому языку","2 раза/нед. Х 30 мин","8 посещений в месяц",4000,3500,600]
["АНГЛИЙСКИЙ КЛУБ 5+","▪Специалист по английскому языку","2 раза/нед. Х 45 мин","8 посещений в месяц",4400,4000,650]
["СУББОТНИЙ АНГЛИЙСКИЙ КЛУБ 5+","▪Специалист по английскому языку","1 раз/нед. Х 30 мин","4 посещений в месяц",2500,2250,700]
["АНГЛИЙСКИЙ КЛУБ \"АМАНИКА\" 5-8 лет (суббота)","▪Специалист по английскому языку","1 раз/нед. Х 90 мин","4 посещений в месяц",4000,4000,1400,700]
["ТВОРЧЕСКИЕ МАСТЕРСКИЕ"]
[]
["Возраст","Специалисты","График","кол-во посещений","стоимость","Стоимость в КОМПЛЕКСЕ","Разовое посещение","Пробное посещение"]
["АКТЕРСКОЕ МАСТЕРСТВО (5-8 лет)","специалист","2 раза/нед. Х 45 мин","8 в месяц",4800,3500,800,500]
["СЕНД-АРТ (3-8 лет)","▪Художник","1 раза/нед. Х 40 мин.","4 в месяц",1600,1000,"-",500]
["АРТСТУДИЯ (3-8 лет)","▪Художник","1 раза/нед. Х 30 мин\\45 мин.","4 в месяц",2500,2000,650,400]
[]
["Малокомплектная группа - Группа по 3-4 человек + 10% от стоимости"]

{"sheet":"ДС ВЕРБНАЯ 23-24","index":7,"n_rows":31,"n_cols":10,"rows_kept":31,"merged":[[6,0,6,9],[10,2,10,4],[14,0,14,9],[19,0,19,1]]}
[null,null,"Утверждено Советом Учредителей"]
[null,null,"ЧДОУ «Школа Кенгуру»  "]
[null,null,"Протокол № _______",{"$nulls":4}," от 14.08.2023 г."]
[null,null,"Директор________",{"$nulls":4},"Шепелина Е.М."]
[{"$nulls":4},"2023-2024 уч.г."]
[null,"Наименование услуги","Стоимость услуги, руб/мес. Для действующих договоров","пол дня","Стоимость услуги, руб/мес. Для новых договоров","Пол дня","Стоимость услуги, руб/час. при покупке Абонемента на  10часов","Стоимость услуги, руб/час. при покупке Абонемента на  20часов","Стоимость услуги, руб/час. при покупке Абонемента на  30часов","Стоимость услуги, руб/час. при покупке Абонемента на  60часов"]
["ЯСЛИ 1,5-2,11"]
["УСЛУГИ ДЕТСКОГО САДА :",null,{"v":22500,"d":"22,500"},{"v":15000,"d":"15,000"},{"v":24500,"d":"24,500"},{"v":16000,"d":"16,000"},{"v":5000,"d":"5,000"},7000,9000,15000]
[null,"Уход и присмотр                       ",16000,8500,17500,9000,"500р/час","350р/час","300р/час","250р/час"]
[null,"Дошкольное образование                      ",6500,6500,7000,7000]
["ДОПОЛНИТЕЛЬНЫЕ УСЛУГИ:"]
[null,"\"БАЗА-раннее детство\"- 2р\\нед",1000,{"$nulls":3},1500]
[null,"Baby-English 2р\\нед",750,{"$nulls":3},1400]
[null,"Sand-art 1 р\\нед",250,{"$nulls":3},1000]
[" САД 3-7 лет"]
["УСЛУГИ ДЕТСКОГО САДА :",null,{"v":22500,"d":"22,500"},{"v":15000,"d":"15,000"},{"v":24500,"d":"24,500"},{"v":16000,"d":"16,000"},{"v":5000,"d":"5,000"},7000,9000,15000]
[null,"Уход и присмотр                       ",16000,8500,17500,9000,"500р/час","350р/час","300р/час","250р/час"]
[null,"Дошкольное образование                      ",6500,6500,7000,7000]
["ДОПОЛНИТЕЛЬНЫЕ УСЛУГИ:",null,"Цена отдельного предмета","Цена в комплексе"]
["Базовый Пакет (Игры по правилам+ Формирование Связной речи+хореография )",null,null,3800]
["(2000+1500+300)+1200","Пакет+англ",null,5000]
["(2000+1500+300)+1200+1200","Пакет+англ.+футбол",null,6200]
["(2000+1500+300)+1200+120+1200","Пакет+англ.+футбол+шахматы",null,7400]
["(2000+1500+300)+1200","Пакет+футбол",null,5000]
["(2000+1500+300)+1200","Пакет+шахматы",null,5000]
[null,"Английский язык",4500]
[null,"Футбол  1р\\нед",2500]
[null,"Шахматы 1р\\нед",2500]
[null,"Арт-студия",3000," в ком-кс 5000"]
[null,"Чтение",null,"250                        (2000/мес)"]
[null,"РОБОТОТЕХНИКА -1 р/нед   (4-8 лет)",2500,2500]

{"sheet":"ДС Кызыл 23-24","index":8,"n_rows":33,"n_cols":10,"rows_kept":33,"merged":[[6,0,6,9],[10,2,10,4],[14,0,14,9],[19,0,19,1],[28,0,28,1]]}
[9,null,"Утверждено Советом Учредителей"]
[null,null,"ЧДОУ «Школа Кенгуру»  "]
[null,null,"Протокол № _______",{"$nulls":4}," от 14.08.2023 г."]
[null,null,"Директор________",{"$nulls":4},"Шепелина Е.М."]
[{"$nulls":4},"2023-2024 уч.г."]
[null,"Наименование услуги","Стоимость услуги, руб/мес. Для действующих договоров","пол дня","Стоимость услуги, руб/мес. Для новых договоров","Пол дня","Стоимость услуги, руб/час. при покупке Абонемента на  10часов","Стоимость услуги, руб/час. при покупке Абонемента на  20часов","Стоимость услуги, руб/час. при покупке Абонемента на  30часов","Стоимость услуги, руб/час. при покупке Абонемента на  60часов"]
["ЯСЛИ 1,5-2,11"]
["УСЛУГИ ДЕТСКОГО ясли :",null,{"v":20500,"d":"20,500"},{"v":13000,"d":"13,000"},{"v":22500,"d":"22,500"},{"v":15000,"d":"15,000"},{"v":5000,"d":"5,000"},7000,9000,15000]
[null,"Уход и присмотр                       ",15000,7500,16000,9000,"500р/час","350р/час","300р/час","250р/час"]
[null,"Дошкольное образование                      ",5500,5500,6500,6000]
["ДОПОЛНИТЕЛЬНЫЕ УСЛУГИ:"]
[null,"\"БАЗА-раннее детство\"- 2р\\нед",1000,{"$nulls":3},1500]
[null,"Baby-English 2р\\нед",750,{"$nulls":3},1400]
[null,"Sand-art 1 р\\нед",250,{"$nulls":3},1000]
[" САД 3-7 лет"]
["УСЛУГИ ДЕТСКОГО САДА :",null,{"v":22500,"d":"22,500"},{"v":15000,"d":"15,000"},{"v":24500,"d":"24,500"},{"v":16000,"d":"16,000"},{"v":5000,"d":"5,000"},7000,9000,15000]
[null,"Уход и присмотр                       ",16000,8500,17500,9000,"500р/час","350р/час","300р/час","250р/час"]
[null,"Дошкольное образование                      ",6500,6500,7000,7000]
[null,"Пакет старт",{"v":5000,"d":"5,000"}]
["ДОПОЛНИТЕЛЬНЫЕ  ГРУППОВЫЕ УСЛУГИ:",null,"Цена отдельного предмета","Цена в комплексе"]
[null,"Английский язык 2р\\нед",4800,1500]
[null,"Арт. студия 1 р\\нед",3000,1200,null," "]
[null,"Актерское мастерство",3000,1200]
[null,null,{"$f":"SUM(C21:C23)","v":10800},3900]
["6+","Час с психологом ",2000,1000]
[null,"Футбол  1р\\нед",2500,2500]
[null,"Шахматы 1р\\нед",3500,2600]
[null,"РОБОТОТЕХНИКА -1 р/нед   (4-8 лет)",3500,2500]
["ДОПОЛНИТЕЛЬНЫЕ\n ИНДИВИДУАЛЬНЫЕ \nУСЛУГИ:",null,"Цена отдельного занятия","Цена от 4-х занятий"]
[null,"Чтение 2 р/н 15 мин",280,"250                        (2000/мес)"]
[null,"Арткласс 1 р/неделю 60 мин",1300,"1100                  (4000/мес)"]
[null,"Занятие с психологом 1-2 р/неделю 40 мин",1600,"1400                    (5600-11200/мес)"]
[null,"Занятие с логопедом 1-2 р/неделю 30 мин",1400,"1200                                             (4800-9600/мес)"]

{"sheet":"Скидки","index":9,"n_rows":15,"n_cols":3,"rows_kept":15,"merged":[[4,0,4,2]]}
[null,null,"Утверждаю"]
[null,null,"Директор ЧДОУ «Школа Кенгуру»"]
["                                                                                ",null,"__________________Шепелина Е.М."]
[]
["Льготы по оплате за образовательные услуги"]
[null,"с 01.09.2021 г."]
["Категория","Характеристика","Скидка"]
[1,"Дети сотрудников",{"v":0.4,"d":"40%"}]
[2,"При обучении двух детей из 1 семьи (скидка на 2-го ребенка) на меньшую стоимость договора",{"v":0.1,"d":"10%"}]
[4,"продолжающие ( второй и последующие годы)",{"v":0.05,"d":"5%"}]
[5,"Дети партнеров",{"v":0.1,"d":"10%"}]
[6,"Дети-инвалиды",{"v":0.15,"d":"15%"}]
[]
[]
["Скидки по двум и более категориям не суммируются."]

{"sheet":"Услуги специалистов","index":10,"n_rows":35,"n_cols":6,"rows_kept":35,"merged":[[6,1,6,2],[7,0,7,2],[8,0,9,1],[8,2,9,2],[8,3,9,3],[10,0,10,1],[11,0,11,1],[12,0,12,3],[13,1,13,2],[14,1,14,2],[15,1,15,2],[16,0,16,3],[17,0,17,2],[18,0,18,3],[20,0,20,1],[21,0,21,1],[22,0,22,1],[26,0,26,3],[28,0,30,0],[31,0,31,3],[32,1,32,2],[33,1,33,2],[34,1,34,2]]}
[",",null,null,"Утверждаю"]
[{"$nulls":3},"Директор ЧДОУ \"Школа Кенгуру\" Шепелина Е.М."]
[{"$nulls":3},"2021-08-19"]
[{"$nulls":3},"_________________"]
[null,"ПРАЙС"]
[null,"На консультационные услуги"]
[null,"на 2021-22учебный год"]
["Психолог"]
["Вид услуги",null,"Не посещающие занятия в ЧДОУ «Школа Кенгуру»","Ученики ЧДОУ «Школа Кенгуру»"]
[]
["Консультирование",null,2000,1800]
["Диагностика ( \"Готовность к школе\"с выдачей результата)",null,2000,1800]
["Коррекционные занятия с психологом"]
[" ","Не посещающие занятия в ЧДОУ",null,"Ученики ЧДОУ \"Школа Кенгуру\""]
["3+",1100,null,900]
["5+",1200,null,1000]
["Научный консультант"]
["Блинова Л.Ф.",null,null,3000]
["Нейропсихолог"]
[null,null,"Не посещающие занятия в ЧДОУ «Школа Кенгуру»","Ученики ЧДОУ «Школа Кенгуру»"]
["Комплекс: диагностика готовности к школе+ нейропсихологическая диагностика",null,4000,3500]
["Нейропсихологическая диагностика с выдачей результатов",null,3500,3000]
["Час с психологом  (1 тренинг в неделю) 4 раза в месяц",null,3200,2500]
[]
[]
[]
["Логопед"]
["Вид услуги","Возраст","Не посещающие занятия в ЧДОУ «Школа Кенгуру»","Занимающиеся в ЧДОУ «Школа Кенгуру»"]
["Диагностика","3-4 года",1500,{"$f":"C29*0.8","v":1200}]
[null,"5-6 лет",1800,1450]
[null,"7-10 лет",1800,1450]
["Коррекционные занятия с логопедом"]
["Кол-во",1,null,1400]
["Кол-во",4,null,"1300/1000 акция до 1.04.2024"]
["Кол-во",10,null,"1200/900 до 1.04",null," "]

{"sheet":"ДС КА с 01.03.2022-2023","index":11,"n_rows":42,"n_cols":12,"rows_kept":42,"hidden":true,"merged":[[4,2,4,6],[5,1,5,11],[7,0,7,1],[7,2,7,3],[7,4,7,5],[7,6,7,7],[8,0,8,7],[8,8,8,11],[9,0,9,1],[9,2,9,3],[9,4,9,5],[9,6,9,7],[10,0,10,1],[10,2,10,3],[10,4,10,5],[10,6,10,7],[11,0,11,1],[11,2,11,3],[11,4,11,5],[11,6,11,7],[12,2,12,3],[12,4,12,5],[12,6,12,7],[13,0,13,1],[13,2,13,3],[13,4,13,5],[13,6,13,7],[14,0,14,1],[14,2,14,3],[14,4,14,5],[14,6,14,7],[15,2,15,3],[15,4,15,5],[15,6,15,7],[16,0,16,1],[16,2,16,3],[16,4,16,5],[16,6,16,7],[17,0,17,1],[17,2,17,3],[17,4,17,5],[17,6,17,7],[18,0,18,1],[18,2,18,3],[18,4,18,5],[18,6,18,7],[19,0,19,1],[19,2,19,3],[19,4,19,5],[19,6,19,7],[24,0,24,7],[24,8,24,11],[25,0,25,1],[25,2,25,3],[25,4,25,5],[25,6,25,7],[26,0,26,1],[26,2,26,3],[26,4,26,5],[26,6,26,7],[27,0,27,1],[27,2,27,3],[27,4,27,5],[27,6,27,7],[28,0,28,1],[28,2,28,3],[28,4,28,5],[28,6,28,7],[29,0,29,1],[29,2,29,3],[29,4,29,5],[29,6,29,7],[30,0,30,1],[30,2,30,3],[30,4,30,5],[30,6,30,7],[31,0,31,1],[31,2,31,3],[31,4,31,5],[31,6,31,7],[32,0,32,1],[32,2,32,3],[32,4,32,5],[32,6,32,7],[33,0,33,1],[33,2,33,3],[33,4,33,5],[33,6,33,7],[34,0,34,1],[34,2,34,3],[34,4,34,5],[34,6,34,7],[35,0,35,1],[35,2,35,3],[35,4,35,5],[35,6,35,7],[36,2,36,3],[36,4,36,5],[36,6,36,7],[37,0,37,1],[37,2,37,3],[37,4,37,5],[37,6,37,7],[38,0,38,1],[38,2,38,3],[38,4,38,5],[38,6,38,7],[39,0,39,1],[39,2,39,3],[39,4,39,5],[39,6,39,7],[40,0,40,1],[40,2,40,3],[40,4,40,5],[40,6,40,7],[41,0,41,1],[41,2,41,3],[41,4,41,5],[41,6,41,7]]}
[{"$nulls":9},"Утверждено Советом Учредителей"]
[{"$nulls":9},"ЧДОУ «Школа Кенгуру»  "]
[{"$nulls":9},"Протокол № _______",null," от 19.08.2021 г."]
[{"$nulls":8},{"$f":"'КЛУБЫ 2023-2024'!E96303","v":"#REF!"},"Директор________",null,"Шепелина Е.М."]
[null,null,"ПРАЙС"]
[null,"на услуги детского сада по ул.Кызыл Армейская 4"]
[{"$nulls":4},"2022-2023 уч.г."]
["Наименование услуги",null,"Стоимость услуги на целый день, руб/мес.",null,"Стоимость услуги на пол дня руб/мес.",null,"Стоимость услуги адаптации руб/2 нед",null,"Пакет Старт ( 5 ДНЕЙ)","Стоимость услуги, руб/час. при покупке Абонемента на  20 часов","Стоимость услуги, руб/час. при покупке Абонемента на  30 часов","Стоимость услуги, руб/час. при покупке Абонемента на  60 часов"]
["ЯСЛИ 1,5-2,11"]
["НОВЫЕ ДЕТИ С 01.09.2022 Г",null,20500,null,13000,null,7500,null,null,300,250,200]
["Уход и присмотр                       ",null,15000,null,7500,null,"-",null,null,{"$f":"J10-J12","v":235},185,135]
["Дошкольное образование:                                                           -лепка/аппликация 1р/нед \n- рисование 1р/нед \n- развитие движений 2 р/нед                                                                        - развитие речи,окружающий мир 1р/нед                                                        -игры со строительным материалом 1р/нед                                                                             - игры с дид.материалом 1р/нед\n- педагог-психолог  2 р/нед                                                                                                            ",null,5500,null,5500,null,"-",null,null,65,65,65]
["УСЛУГИ ЯСЛИ\n",null,{"$f":"C14+C15","v":{"v":17500,"d":"17,500"}},null,{"v":12000,"d":"12,000"},null,{"v":6600,"d":"6,600"},null,3000,270,220,170]
["Уход и присмотр                       ",null,14000,null,9300,null,"-",null,null,240,190,140]
["Дошкольное образование:                                                           -лепка/аппликация 1р/нед \n- рисование 1р/нед \n- развитие движений 2 р/нед                                                                        - развитие речи,окружающий мир 1р/нед                                                        -игры со строительным материалом 1р/нед                                                                             - игры с дид.материалом 1р/нед\n- педагог-психолог  2 р/нед                                                                                                            ",null,3500,null,3500,null,"-",null,null,30,30,30]
["ДОПОЛНИТЕЛЬНЫЕ\n УСЛУГИ:",null,"Цена отдельного курса",null,"Цена в комплексе (не менее 3-х предметов)"]
["Baby English- 2р\\нед",null,1600,null,800]
["\"БАЗА-раннее детство\" 2р\\нед",null,2800,null,1500]
["Baby балет -2 р/неделю",null,1600,null,400]
["комплекс",null,{"$f":"C17+C18+C19","v":6000},null,{"$f":"E17+E18+E19","v":2700}]
[]
[]
[]
[]
[" САД 3-7 лет"]
["УСЛУГИ ДЕТСКОГО САДА :",null,{"$f":"C27+C28","v":{"v":20500,"d":"20,500"}},null,{"$f":"E27+E28","v":{"v":13000,"d":"13,000"}},null,{"$f":"30*250","v":{"v":7500,"d":"7,500"}},null,null,300,250,200]
["Уход и присмотр  продолжающие",null,15000,null,7500,null,"-",null,null,{"$f":"J26-J28","v":235},185,135]
["Дошкольное образование:                                                -педагог развивающего курса 2 р/нед  \n- музыкальный руководитель  2 р/нед \n- логопед 1 р/нед (средняя группа), 2 р/н (старшая и подготовительная группа)                                                              - педагог-психолог 1 р/нед                                                                             -Send Art 1 р/н                 ",null,5500,null,5500,null,"-",null,null,65,65,65]
["новые клиенты с 01.03.2022",null,{"$f":"C30+C31","v":{"v":22500,"d":"22,500"}},null,{"$f":"E30+E31","v":{"v":14250,"d":"14,250"}},null,{"$f":"30*250","v":{"v":7500,"d":"7,500"}},null,3000,300,250,200]
["Уход и присмотр  ",null,16500,null,{"$f":"16500/2","v":8250},null,"-",null,null,{"$f":"J29-J31","v":235},185,135]
["Дошкольное образование новые клиенты:                                                -педагог развивающего курса 2 р/нед  \n- музыкальный руководитель  2 р/нед \n- логопед 1 р/нед (средняя группа), 2 р/н (старшая и подготовительная группа)                                                              - педагог-психолог 1 р/нед                                                                             -Send Art 1 р/н                 ",null,6000,null,6000,null,"-",null,null,65,65,65]
["  ",null,"Цена отдельного курса по прайсу центра",null,"Цена в комплексе (не мене3-х предметов)"]
["Английский язык 2р\\нед",null,3500,null,1500]
["Арт. студия 1 р\\нед",null,2000,null,800]
["Хореография 2 р\\нед",null,3000,null,1000]
["Час с психологом с психологом (1 тренинг в неделю)",null,2500]
[null,"Итого:",{"$f":"C33+C34+C36+C35","v":11000},null,{"$f":"E33+E34+E36+E35","v":3300}]
["ДОПОЛНИТЕЛЬНЫЕ\n ИНДИВИДУАЛЬНЫЕ \nУСЛУГИ:",null,"Цена отдельного занятия",null,"Цена от 4-х занятий"]
["Чтение 2 р/н 15 мин",null,250,null,"200                        (1600/мес)"]
["Арткласс 1 р/неделю 60 мин",null,1200,null,"1000                  (4000/мес)"]
["Занятие с психологом 1-2 р/неделю 40 мин",null,1600,null,"1400                    (5600-11200/мес)"]
["Занятие с логопедом 1-2 р/неделю 30 мин",null,1400,null,"1200                                             (4800-9600/мес)"]

{"sheet":"ДС Вербная  2022-2023","index":12,"n_rows":42,"n_cols":11,"rows_kept":42,"hidden":true,"merged":[[4,1,4,7],[5,0,5,9],[6,2,6,7],[7,1,7,2],[7,3,7,4],[7,5,7,6],[8,0,8,10],[9,1,9,2],[9,3,9,4],[9,5,9,6],[10,1,10,2],[10,3,10,4],[10,5,10,6],[11,1,11,2],[11,3,11,4],[11,5,11,6],[12,1,12,2],[12,3,12,4],[12,5,12,6],[13,1,13,2],[13,3,13,4],[13,5,13,6],[14,1,14,2],[14,3,14,4],[14,5,14,6],[15,1,15,2],[15,3,15,4],[15,5,15,6],[16,1,16,2],[16,3,16,4],[16,5,16,6],[17,1,17,2],[17,3,17,4],[17,5,17,6],[18,1,18,2],[18,3,18,4],[18,5,18,6],[19,1,19,2],[19,3,19,4],[19,5,19,6],[21,1,21,2],[21,3,21,4],[21,5,21,6],[22,1,22,2],[22,3,22,4],[22,5,22,6],[23,1,23,2],[23,3,23,4],[23,5,23,6],[24,1,24,2],[24,3,24,4],[24,5,24,6],[25,1,25,2],[25,3,25,4],[25,5,25,6],[26,1,26,2],[26,3,26,4],[26,5,26,6],[27,1,27,2],[27,3,27,4],[27,5,27,6],[28,1,28,2],[28,3,28,4],[28,5,28,6],[29,1,29,2],[29,3,29,4],[29,5,29,6],[30,1,30,2],[30,3,30,4],[30,5,30,6],[31,1,31,2],[31,3,31,4],[31,5,31,6],[32,1,32,2],[32,3,32,4],[32,5,32,6],[33,1,33,2],[33,3,33,4],[33,5,33,6],[34,1,34,2],[34,3,34,4],[34,5,34,6],[37,1,37,2],[37,3,37,4],[37,5,37,6],[38,1,38,2],[38,3,38,4],[38,5,38,6],[39,1,39,2],[39,3,39,4],[39,5,39,6],[40,1,40,2],[40,3,40,4],[40,5,40,6],[41,1,41,2],[41,3,41,4],[41,5,41,6]]}
[" ",{"$nulls":7},"Утверждено Советом Учредителей"]
[{"$nulls":8},"ЧДОУ «Школа Кенгуру»  "]
[{"$nulls":8},"Протокол № _______",null," от 19.08.2021 г."]
[{"$nulls":8},"Директор________",null,"Шепелина Е.М."]
[null,"ПРАЙС"]
["                  на услуги детского сада по ул.Вербная 1а"]
[null,null,"2022-202 3уч.г."]
["Наименование услуги","Стоимость услуги на целый день, руб/мес.",null,"Стоимость услуги на пол дня руб/мес.",null,"Стоимость услуги адаптации руб/2 нед",null,"Пакет Старт ( 5 ДНЕЙ)","Стоимость услуги, руб/час. при покупке Абонемента на  20 часов","Стоимость услуги, руб/час. при покупке Абонемента на  30 часов","Стоимость услуги, руб/час. при покупке Абонемента на  60 часов"]
["ЯСЛИ"]
["УСЛУГИ ДЕТСКОГО САДА (продолжающие) :",{"$f":"B11+B12","v":{"v":19000,"d":"19,000"}},null,{"$f":"D11+D12","v":{"v":12000,"d":"12,000"}},null,{"$f":"30*J10","v":{"v":7500,"d":"7,500"}},null,3000,300,250,200]
["Уход и присмотр продолжающие                       ",14000,null,7000,null,"-",null,null,270,220,170]
["Дошкольное образование продолжающие:                                                           -лепка/аппликация 1р/нед \n- рисование 1р/нед \n- развитие движений 2 р/нед                                                                        - развитие речи,окружающий мир 1р/нед                                                        -игры со строительным материалом 1р/нед                                                                             - игры с дид.материалом 1р/нед\n- педагог-психолог  2 р/нед                                       \"БАЗА-раннее детство\"(1.5-2,5 года)\\Любознайка (2,-3,5 года)- 2р\\недю                                                                               ",5000,null,5000,null,"-",null,null,30,30,30]
["УСЛУГИ ДЕТСКОГО САДА (новые договора) :",{"$f":"B14+B15","v":{"v":20500,"d":"20,500"}},null,{"$f":"D14+D15","v":{"v":13000,"d":"13,000"}},{"$nulls":3},3000,300,250,200]
["Уход и присмотр  (новые договора) ",15000,null,7500,null,"-",null,null,270,220,170]
["Дошкольное образование  (новые договора) :                                                           -лепка/аппликация 1р/нед \n- рисование 1р/нед \n- развитие движений 2 р/нед                                                                        - развитие речи,окружающий мир 1р/нед                                                        -игры со строительным материалом 1р/нед                                                                             - игры с дид.материалом 1р/нед\n- педагог-психолог  2 р/нед                                       \"БАЗА-раннее детство\"(1.5-2,5 года)\\Любознайка (2,-3,5 года)- 2р\\недю                                                                               ",5500,null,5500,null,"-",null,null,30,30,30]
["ДОПОЛНИТЕЛЬНЫЕ ОБРАЗОВАТЕЛЬНЫЕ УСЛУГИ","Цена отдельного курса",null,"Цена в комплексе (не мене3-х предметов)"]
["Английский язык -2 р/неделю",1600,null,700]
["Sand Art 1 р\\нед",1200,null,400]
["Baby балет -2 р/неделю",1600,null,400]
["Итого:",{"$f":"SUM(B17:C19)","v":{"v":4400,"d":"4,400"}},null,{"v":1500,"d":"1,500"}]
[" САД 3-7 лет"]
["УСЛУГИ ДЕТСКОГО САДА (продолжающие) :",{"$f":"B23+B24","v":{"v":19000,"d":"19,000"}},null,{"$f":"D23+D24","v":{"v":12000,"d":"12,000"}},null,{"$f":"30*J22","v":{"v":7500,"d":"7,500"}},null,3000,300,250,200]
["Уход и присмотр продолжающие      ",14000,null,7000,null,"-",null,null,{"$f":"I22-I24","v":235},185,135]
["Дошкольное образование продолжающие:                                               \n- Музыка 2р/нед  -Физкультура  2р/нед   -Математическое развитие 2р/нед  -Подготовка руки к письму1р/нед  -Обучение грамоте,развитие речи  3р/нед  -Основы науки естествознания  1р/нед  -Рисование 1/нед                        -Аппликация/Лепка 1р/нед  -Конструирование 1р/нед\n- логопедическая диагностика                                                              - педагог-психолог                                     ",5000,null,5000,null,"-",null,null,65,65,65]
["новые клиенты с 01.01.2022",{"$f":"B26+B27","v":20500},null,{"$f":"D26+D27","v":{"v":13000,"d":"13,000"}},null,{"$f":"30*J25","v":{"v":7500,"d":"7,500"}},null,3000,300,250,200]
["Уход и присмотр начинающие                      ",15000,null,7500,null,"-",null,null,270,220,170]
["Дошкольное образование начинающие:                                               \n- Музыка 2р/нед  -Физкультура  2р/нед   -Математическое развитие 2р/нед  -Подготовка руки к письму1р/нед  -Обучение грамоте,развитие речи  3р/нед  -Основы науки естествознания  1р/нед  -Рисование 1/нед                        -Аппликация/Лепка 1р/нед  -Конструирование 1р/нед\n- логопедическая диагностика                                                              - педагог-психолог                                     ",5500,null,5500,null,"-",null,null,30,30,30]
[null,"Цена отдельного курса",null,"Цена в комплексе (не мене3-х предметов)"]
["Английский язык -2 р/неделю",3500,null,1750]
["Учусь говорить красиво. Курс развития связной речи.- 1 р/нед. \n",2000,null,1000]
["Арт. студия 1 р\\нед",2500,null,1000]
["Хореография 2 р\\нед",3000,null,1500]
["Игры по правилам (Час с психологом) 2 р/нед.",2000,null,1000]
["Театр 2 р/нед",3000,null,1500]
["Городок в городке (1 раз в неделю)",3500,null,3500]
[]
[]
["Итого:",{"$f":"SUM(B29:C35)","v":{"v":19500,"d":"19,500"}},null,{"$f":"SUM(D29:E35)-1000","v":{"v":10250,"d":"10,250"}}]
["Чтение 2 р/н 15 мин",250,null,"200                        (1600/мес)"]
["Арткласс 1 р/неделю 60 мин",1200,null,"1000                  (4000/мес)"]
["Занятие с психологом 1-2 р/неделю 40 мин",1600,null,"1400                    (5600-11200/мес)"]
["Занятие с логопедом 1-2 р/неделю 30 мин",1400,null,"1000  занятие                                           (10 запнятий)"]

{"sheet":"КЛУБ Серова- Спартаковскася 21-","index":13,"n_rows":33,"n_cols":8,"rows_kept":33,"hidden":true,"merged":[[0,0,0,8],[1,0,1,8],[2,0,2,8],[3,1,3,4],[9,7,11,7],[9,8,11,8],[12,0,12,5],[13,14,13,17],[13,18,13,21],[15,0,15,5],[18,5,22,5],[21,12,21,18],[23,0,23,5],[24,5,26,5],[27,0,27,8],[32,0,32,8],[33,0,33,8]]}
["ПРАЙС"]
["Услуг для детей по досуговой деятельности на 2021-2022 учебный год"]
["ИГРОВЫЕ РАЗВИВАЮЩИЕ КОМПЛЕКСЫ  2 РАЗА В НЕДЕЛЮ"]
[null,"Стартовый комплект-комплекс"]
[null,"для 5 - 6 лет","для 3 - 4 года","Я сам","выходного дня"]
[null,4000,2700,1500,3200]
["Возраст","Специалисты","График","кол-во занятий","стоимость","Стоимость в КОМПЛЕКСЕ с другими предметами","Разовое занятие(родитель+ребенок)","пробное "]
["\"МАМА+МАЛЫШ\"  развивающие занятия для детей от1г до3х лет","▪педагог раннего развития","8 встреч в месяц","8 занятий в месяц",3500,3000,500,250]
["АРТ СТУДИЯ ДЛЯ МАМ И МАЛЫШЕЙ","▪педагог раннего развития","4  встреч в месяц","4 занятия в месяц",1200,800,350,250]
["3 года +  \"Я ПОЗНАЮ МИР\":                    ▪ Развивающий игровой курс 3+                          ▪Английский клуб                     ▪Сопровождение психолога (Диагностика и игры)                                        ▪Диагностика логопедическая с выдачей рекомендаций                                                               ▪2 тренинга для родителей","▪Специалист дошкольного образования                         ▪Специалист английского языка                           ▪Психолог","2 раза/нед. -1ч15мин",16,5800,null,null,500]
["4 года +  \"Я МОДЕЛИРУЮ МИР\":                                  ▪ Развивающий игровой курс 4+                          ▪Английский клуб                     ▪Сопровождение психолога (Диагностика и игры)                                        ▪Диагностика логопедическая с выдачей рекомендаций                                                               ▪2 тренинга для родителей","▪Специалист дошкольного образования                         ▪Специалист английского языка                           ▪Психолог","2 раза/нед.  -  1.5ч ",16,5800]
["5-7 лет   \"ПРЕДШКОЛА\"                              ▪ Развивающий игровой курс  5+ (или 6+)                              ▪Английский клуб                    ▪Сопровождение психолога (Диагностика и занятия)                                        ▪Диагностика логопедическая с выдачей рекомендаций                                                               ▪2 тренинга для родителей","▪Специалист дошкольного образования                         ▪Специалист английского языка                           ▪Психолог","2 раза/нед.  -  2ч",16,6200]
["ИГРОВЫЕ РАЗВИВАЮЩИЕ КОМПЛЕКСЫ  ВЫХОДНОГО ДНЯ"]
["Возраст","Специалисты","График","кол-во посещений\\занятий","стоимость","Пробное занятие"]
["3 года +  \"Я ПОЗНАЮ МИР\":                            ▪ Развивающий игровой курс 3+                                          ▪Английский клуб                                                     ▪ Арт-студия                                                    ▪Диагностика психолога                                   ▪2 тренинга для родителей, , ","▪Специалист по раннему  развитию                           ▪Специалист английского языка                                ▪Специалист артстудии                          ▪Психолог                             ","1  раз/нед.  \n1ч15мин-1ч45мин",8,"4500 \nкурс без тестопластики - 3600",600]
["ИГРОВЫЕ РАЗВИВАЮЩИЕ КУРСЫ"]
[null,null,"стартовый комплект",2000]
["Возраст","Специалисты","График","кол-во посещений\\занятий","стоимость","Пробное занятие"]
["Развивающий игровой КУРС Я САМ 2.5 года +                         ▪Развивающий комплекс                                ▪ Тестопластика\\Рисование                                                         ▪ Психолог            ","▪Специалист по раннему  развитию                                               ▪Психолог","2 раза/нед. -  50 минут",8,4000,500]
["Развивающий игровой КУРС 3 года +                                        ▪Веселая математика                                                  ▪Играем с кубиками Зайцева                                        ▪Пальчиковые игры                                                          ▪Мир вокруг         \n▪Диагностика логопеда","▪Специалист дошкольного образования                                                   ▪Психолог","2 раза/нед. -  45 минут",8,4000]
["Развивающий игровой КУРС 4 года +                                        ▪Веселая математика                                                  ▪Играем с кубиками Зайцева                                        ▪Пальчиковые игры                                                          ▪Мир вокруг         \n▪Диагностика логопеда","▪Специалист дошкольного образования                                                  ▪Психолог","2  раза/нед. - 1 час",8,4000]
["Развивающий предшкольный КУРС 5+                                        ▪Веселая математика                                                  ▪Играем с кубиками Зайцева                                        ▪Пальчиковые игры                                                          ▪Мир вокруг                            \n▪ Логика                           ▪Развивающие игры В.Воскобовича       \n▪Диагностика логопеда","▪Специалист дошкольного образования                                                    ▪Психолог","2  раза/нед.  -  1ч15мин",8,4500]
["6 лет( 2 половина года)  Экспресс - курс \"ПРЕДШКОЛА\"   ▪                                                                                           ▪Развивающие игры В.Воскобовича       ▪ Кубики Зайцева","▪Специалист по кубикам зайцева и играм В.Воскобовича     ","2 раза/нед.  или 1 раз/нед по 45 мин","2021-04-08","3500/2000"]
["АНГЛИЙСКИЙ КЛУБ"]
[" АНГЛИЙСКИЙ КЛУБ 2+","▪Специалист по английскому языку","2 раза/нед.  Х 15 мин","8 занятий в месяц","1600 (  при покупке курса \"Я сам\" стоимость 1000 рублей, если услуга предоставляется в филиале )",400]
[" АНГЛИЙСКИЙ КЛУБ 3+ ","▪Специалист по английскому языку","2 раза/нед.  Х 30 мин","8 занятий в месяц",3500]
["АНГЛИЙСКИЙ КЛУБ  5+","▪Специалист по английскому языку","2 раза/нед.  Х 45  мин","8 занятий в месяц",4000]
["Стартовый комплект = Стоимости учебного пособия. \nI can read и I can analyse  (2ой год обучения) по данным ступеням пособия не покупает"]
["Возраст","Специалисты","График","Продолжительность","Стоимость в мес-ц 1 год ","Стоимость в КОМПЛЕКСЕ с другими предметами","Разовое занятие(родитель+ребенок)","пробное до 01.10.2021"]
["ТЕАТР СЛОВ (5-8 лет)","▪Логопед","1 раза/нед.  Х 40 мин.","4 занятия в месяц",2500,1800,null,250]
["СЕНД-АРТ (3-8 лет)","▪Художник","1 раза/нед.  Х 40 мин.","4 занятия в месяц",1600,1000,null,250]
["АРТСТУДИЯ    (3-8 лет)","▪Художник","1 раза/нед.  Х 30  мин\\45 мин.","4 занятия в месяц",2000,1500,null,250]
["Малокомплектная группа - Группа по 3-4 человек + 10% от стоимости курса"]

{"sheet":"ДС КА до 02.2022","index":14,"n_rows":32,"n_cols":12,"rows_kept":32,"hidden":true,"merged":[[4,2,4,6],[5,1,5,11],[7,0,7,1],[7,2,7,3],[7,4,7,5],[7,6,7,7],[8,0,8,7],[8,8,8,11],[9,2,9,3],[9,4,9,5],[9,6,9,7],[10,0,10,1],[10,2,10,3],[10,4,10,5],[10,6,10,7],[11,0,11,1],[11,2,11,3],[11,4,11,5],[11,6,11,7],[12,2,12,3],[12,4,12,5],[12,6,12,7],[13,0,13,1],[13,2,13,3],[13,4,13,5],[13,6,13,7],[14,0,14,1],[14,2,14,3],[14,4,14,5],[14,6,14,7],[15,0,15,1],[15,2,15,3],[15,4,15,5],[15,6,15,7],[16,0,16,1],[16,2,16,3],[16,4,16,5],[16,6,16,7],[17,0,17,7],[17,8,17,11],[18,0,18,1],[18,2,18,3],[18,4,18,5],[18,6,18,7],[19,0,19,1],[19,2,19,3],[19,4,19,5],[19,6,19,7],[20,0,20,1],[20,2,20,3],[20,4,20,5],[20,6,20,7],[21,0,21,1],[21,2,21,3],[21,4,21,5],[21,6,21,7],[22,0,22,1],[22,2,22,3],[22,4,22,5],[22,6,22,7],[23,0,23,1],[23,2,23,3],[23,4,23,5],[23,6,23,7],[24,0,24,1],[24,2,24,3],[24,4,24,5],[24,6,24,7],[25,0,25,1],[25,2,25,3],[25,4,25,5],[25,6,25,7],[26,2,26,3],[26,4,26,5],[26,6,26,7],[27,0,27,1],[27,2,27,3],[27,4,27,5],[27,6,27,7],[28,0,28,1],[28,2,28,3],[28,4,28,5],[28,6,28,7],[29,0,29,1],[29,2,29,3],[29,4,29,5],[29,6,29,7],[30,0,30,1],[30,2,30,3],[30,4,30,5],[30,6,30,7],[31,0,31,1],[31,2,31,3],[31,4,31,5],[31,6,31,7]]}
[{"$nulls":9},"Утверждено Советом Учредителей"]
[{"$nulls":9},"ЧДОУ «Школа Кенгуру»  "]
[{"$nulls":9},"Протокол № _______",null," от 19.08.2021 г."]
[{"$nulls":9},"Директор________",null,"Шепелина Е.М."]
[null,null,"ПРАЙС"]
[null,"на услуги детского сада по ул.Кызыл Армейская 4"]
[{"$nulls":4},"2020-2021 уч.г."]
["Наименование услуги",null,"Стоимость услуги на целый день, руб/мес.",null,"Стоимость услуги на пол дня руб/мес.",null,"Стоимость услуги адаптации руб/2 нед",null,"Пакет Старт ( 5 ДНЕЙ)","Стоимость услуги, руб/час. при покупке Абонемента на  20 часов","Стоимость услуги, руб/час. при покупке Абонемента на  30 часов","Стоимость услуги, руб/час. при покупке Абонемента на  60 часов"]
["ЯСЛИ 1,5-2,11"]
["УСЛУГИ ДЕТСКОГО\n САДА :",null,{"$f":"C11+C12","v":{"v":17500,"d":"17,500"}},null,{"$f":"E11+E12","v":{"v":10800,"d":"10,800"}},null,{"v":6600,"d":"6,600"},null,3000,270,220,170]
["Уход и присмотр                       ",null,14000,null,7300,null,"-",null,null,240,190,140]
["Дошкольное образование:                                                           -лепка/аппликация 1р/нед \n- рисование 1р/нед \n- развитие движений 2 р/нед                                                                        - развитие речи,окружающий мир 1р/нед                                                        -игры со строительным материалом 1р/нед                                                                             - игры с дид.материалом 1р/нед\n- педагог-психолог  2 р/нед                                                                                                            ",null,3500,null,3500,null,"-",null,null,30,30,30]
["ДОПОЛНИТЕЛЬНЫЕ\n УСЛУГИ:",null,"Цена отдельного курса",null,"Цена в комплексе (не менее 3-х предметов)"]
["Baby English- 2р\\нед",null,1600,null,800]
["\"БАЗА-раннее детство\" 2р\\нед",null,2800,null,1500]
["Baby балет -2 р/неделю",null,1600,null,400]
["комплекс",null,{"$f":"C14+C15+C16","v":6000},null,{"$f":"E14+E15+E16","v":2700}]
[" САД 3-7 лет"]
["УСЛУГИ ДЕТСКОГО САДА :",null,{"$f":"C20+C21","v":{"v":18500,"d":"18,500"}},null,{"$f":"E20+E21","v":{"v":11800,"d":"11,800"}},null,{"v":7100,"d":"7,100"},null,{"$f":"I20+I21","v":340},290,240,190]
["Уход и присмотр  ",null,14000,null,7300,null,"-",null,275,225,175,125]
["Дошкольное образование:                                                -педагог развивающего курса 2 р/нед  \n- музыкальный руководитель  2 р/нед \n- логопед 1 р/нед (средняя группа), 2 р/н (старшая и подготовительная группа)                                                              - педагог-психолог 1 р/нед                                                                             -Send Art 1 р/н                 ",null,4500,null,4500,null,"-",null,65,65,65,65]
["ДОПОЛНИТЕЛЬНЫЕ \nУСЛУГИ:",null,"Цена отдельного курса по прайсу центра",null,"Цена в комплексе (не мене3-х предметов)"]
["Английский язык 2р\\нед",null,3500,null,1500]
["Арт. студия 1 р\\нед",null,2000,null,800]
["Хореография 2 р\\нед",null,3000,null,1000]
["Час с психологом с психологом (1 тренинг в неделю)",null,2500,null,1500]
[null,"Итого:",{"$f":"C23+C24+C26+C25","v":11000},null,{"$f":"E23+E24+E26+E25","v":4800}]
["ДОПОЛНИТЕЛЬНЫЕ\n ИНДИВИДУАЛЬНЫЕ \nУСЛУГИ:",null,"Цена отдельного занятия",null,"Цена от 4-х занятий"]
["Чтение 2 р/н 15 мин",null,250,null,"200                        (1600/мес)"]
["Арткласс 1 р/неделю 60 мин",null,1200,null,"1000                  (4000/мес)"]
["Занятие с психологом 1-2 р/неделю 40 мин",null,1600,null,"1400                    (5600-11200/мес)"]
["Занятие с логопедом 1-2 р/неделю 30 мин",null,1400,null,"1200                                             (4800-9600/мес)"]

{"sheet":"ДС Вербная  31.12.2021","index":15,"n_rows":34,"n_cols":11,"rows_kept":34,"hidden":true,"merged":[[4,1,4,7],[5,0,5,9],[6,2,6,7],[7,1,7,2],[7,3,7,4],[7,5,7,6],[8,0,8,10],[9,1,9,2],[9,3,9,4],[9,5,9,6],[10,1,10,2],[10,3,10,4],[10,5,10,6],[11,1,11,2],[11,3,11,4],[11,5,11,6],[12,1,12,2],[12,3,12,4],[12,5,12,6],[13,1,13,2],[13,3,13,4],[13,5,13,6],[14,1,14,2],[14,3,14,4],[14,5,14,6],[15,1,15,2],[15,3,15,4],[15,5,15,6],[16,1,16,2],[16,3,16,4],[16,5,16,6],[18,1,18,2],[18,3,18,4],[18,5,18,6],[19,1,19,2],[19,3,19,4],[19,5,19,6],[20,1,20,2],[20,3,20,4],[20,5,20,6],[21,1,21,2],[21,3,21,4],[21,5,21,6],[22,1,22,2],[22,3,22,4],[22,5,22,6],[23,1,23,2],[23,3,23,4],[23,5,23,6],[24,1,24,2],[24,3,24,4],[24,5,24,6],[25,1,25,2],[25,3,25,4],[25,5,25,6],[26,1,26,2],[26,3,26,4],[26,5,26,6],[27,1,27,2],[27,3,27,4],[27,5,27,6],[28,1,28,2],[28,3,28,4],[28,5,28,6],[29,1,29,2],[29,3,29,4],[29,5,29,6],[30,1,30,2],[30,3,30,4],[30,5,30,6],[31,1,31,2],[31,3,31,4],[31,5,31,6],[32,1,32,2],[32,3,32,4],[32,5,32,6],[33,1,33,2],[33,3,33,4],[33,5,33,6]]}
["6н7",{"$nulls":7},"Утверждено Советом Учредителей"]
[{"$nulls":8},"ЧДОУ «Школа Кенгуру»  "]
[{"$nulls":8},"Протокол № _______",null," от 19.08.2021 г."]
[{"$nulls":8},"Директор________",null,"Шепелина Е.М."]
[null,"ПРАЙС"]
["                  на услуги детского сада по ул.Вербная 1а"]
[null,null,"2021-2022 уч.г."]
["Наименование услуги","Стоимость услуги на целый день, руб/мес.",null,"Стоимость услуги на пол дня руб/мес.",null,"Стоимость услуги адаптации руб/2 нед",null,"Пакет Старт ( 5 ДНЕЙ)","Стоимость услуги, руб/час. при покупке Абонемента на  20 часов","Стоимость услуги, руб/час. при покупке Абонемента на  30 часов","Стоимость услуги, руб/час. при покупке Абонемента на  60 часов"]
["ЯСЛИ"]
[null,{"$f":"B11+B12","v":{"v":17500,"d":"17,500"}},null,{"$f":"D11+D12","v":{"v":10800,"d":"10,800"}},null,{"v":6600,"d":"6,600"},null,3000,270,220,170]
["Уход и присмотр                       ",13000,null,6300,null,"-",null,null,240,190,140]
["Дошкольное образование:                                                           -лепка/аппликация 1р/нед \n- рисование 1р/нед \n- развитие движений 2 р/нед                                                                        - развитие речи,окружающий мир 1р/нед                                                        -игры со строительным материалом 1р/нед                                                                             - игры с дид.материалом 1р/нед\n- педагог-психолог  2 р/нед                                       \"БАЗА-раннее детство\"(1.5-2,5 года)\\Любознайка (2,-3,5 года)- 2р\\недю                                                                               ",4500,null,4500,null,"-",null,null,30,30,30]
[null,"Цена отдельного курса",null,"Цена в комплексе (не мене3-х предметов)"]
["Английский язык -2 р/неделю",1600,null,700]
["Sand Art 1 р\\нед",1200,null,400]
["Baby балет -2 р/неделю",1600,null,400]
["Итого:",{"$f":"SUM(B14:C16)","v":{"v":4400,"d":"4,400"}},null,{"v":1500,"d":"1,500"}]
[]
[null,{"$f":"B20+B21","v":{"v":17500,"d":"17,500"}},null,{"$f":"D20+D21","v":{"v":10800,"d":"10,800"}},null,{"v":7100,"d":"7,100"},null,{"$f":"H20+H21","v":340},290,240,190]
[null,13000,null,6300,null,"-",null,275,225,175,125]
["Дошкольное образование:                                               \n- Музыка 2р/нед  -Физкультура  2р/нед   -Математическое развитие 2р/нед  -Подготовка руки к письму1р/нед  -Обучение грамоте,развитие речи  3р/нед  -Основы науки естествознания  1р/нед  -Рисование 1/нед                        -Аппликация/Лепка 1р/нед  -Конструирование 1р/нед\n- логопедическая диагностика                                                              - педагог-психолог                                     ",4500,null,4500,null,"-",null,65,65,65,65]
[null,"Цена отдельного курса",null,"Цена в комплексе (не мене3-х предметов)"]
["Английский язык -2 р/неделю",3500,null,1750]
["Учусь говорить красиво. Курс развития связной речи.- 1 р/нед. \n",2000,null,1000]
["Арт. студия 1 р\\нед",2000,null,1000]
["Хореография 2 р\\нед",3000,null,1500]
["Игры по правилам (Час с психологом) 2 р/нед.",2000,null,1000]
["Музыкальный театр (Театр+вокал) 2 р/нед",2000,null,1000]
["Городок в городке (1 раз в неделю)",3200,null,3200]
["Итого:",{"$f":"SUM(B23:C29)","v":{"v":17700,"d":"17,700"}},null,{"$f":"SUM(D23:E29)","v":{"v":10450,"d":"10,450"}}]
["Чтение 2 р/н 15 мин",250,null,"200                        (1600/мес)"]
["Арткласс 1 р/неделю 60 мин",1200,null,"1000                  (4000/мес)"]
["Занятие с психологом 1-2 р/неделю 40 мин",1600,null,"1400                    (5600-11200/мес)"]
["Занятие с логопедом 1-2 р/неделю 30 мин",1400,null,"1200                                             (4800-9600/мес)"]

{"sheet":"ЛЕТНИЙ КЛУБ 2022","index":16,"n_rows":16,"n_cols":7,"rows_kept":16,"hidden":true}
["ЛЕТНИЙ КЛУБ 2022"]
["Наименование /Содержание","Адрес/стоимость","стоимость для Кенгуренка (СКИДКА 15%)","кол-во детей","Фон з/п педагога- 3 ч/день зп","Фонд з-ты вожатого 8 часов /день","Фонд з/платы  вожатый в смену"]
["Лето в Школе Кенгуру - это синтез летних развивающих проектов от наших ведущих педагогов (Holiday Class)  : Мультипликация, Театральное искусство, Лингвистика , Архитектура и дизайн, Артстудия, Танцевальный марафон.","Серова 22/24,                       Спартаковская 88Б, офис 1023;                                               Вербная 1а;                                                     Кызыл Арейская 4а",null,null,"понед-пятница\n Серова\n Спартаковская","вожатый"]
["На протяжении 10 дней ребята изучают не просто что-то новое для себя, но и защищают итоговый проект в конце смены. Также получают сертификат об успешном участии в проекте.",14000,12000,5,{"$f":"250*3","v":750},{"$f":"D4*200","v":1000},{"$f":"F4*10","v":10000}]
[null,14000,12000,6,{"$f":"300*3","v":900},1200,12000]
[null,14000,12000,7,{"$f":"350*3","v":1050},1400,14000]
[null,14000,12000,8,{"$f":"400*3","v":1200},1600,16000]
[null,14000,12000,9,{"$f":"450*3","v":1350},1800,18000]
[null,14000,12000,{"$f":"D8+1","v":10},{"$f":"500*3","v":1500},2000,20000]
["Смена Полдня с питанием",{"v":8500,"d":"8,500"},{"v":7000,"d":"7,000"},11,1500,2200,22000]
["Смена Полдня без питания",{"v":7000,"d":"7,000"},{"v":6000,"d":"6,000"},12,1500,2400,24000]
["Один день",1500,1200,13,1500,2600,26000]
["Полдня с питанием",950,800,14,1500,2800,28000]
["Полдня без питания",800,700,15,1500,3000,30000]
[null,null,11500,{"$nulls":3},{"$f":"F15+E15","v":0}]
["При покупке двух смен стоимость ",null,{"$f":"C15+C4","v":23500},{"$nulls":3},0]

{"sheet":"Семинары","index":17,"n_rows":12,"n_cols":5,"rows_kept":12,"hidden":true,"merged":[[4,1,4,3],[5,1,5,3]]}
[{"$nulls":4},"Утверждаю"]
[{"$nulls":4},"Директор ЧДОУ «Школа Кенгуру»"]
[{"$nulls":4}," Шепелина Е.М."]
[]
[null,"ПРАЙС"]
[null,"на семинары в 2017-2018 уч.г."]
[]
["№","Наименование услуги","Дата проведения","Стоимость без скидки, руб.","Стоимость со скидкой от 5 до 20% для партнеров, руб."]
[1,"Эффективные технологии в предшкольном образовании (72 ч).","Ноябрь 2017-Февраль 2018 ",6500,{"v":5200,"d":"5,200"}]
[4,"Методика обучения английскому языку детей от 3 до 9 лет (36 ч.)","2018-04-01",25000,{"v":22000,"d":"22,000"}]
[7,"Методики Зайцева (18ч.)","2018-04-01",4400,{"v":3500,"d":"3,500"}]
[8,"Игры Воскобовича. Макарова Т.В., Софронова Л.Б. (12 ч.)","2018-04-01",3200,{"v":1600,"d":"1,600"}]